Workbook

Sheet offerta economica LOTTO 1
B2: Procedura aperta di carattere comunitario, ai sensi dell’art. 55, comma 5 del D.lgs. n. 163 del 12/04/2006, suddivisa in quattro lotti, volta all’affidamento dei «Servizi di gestione integrata e recapito della corrispondenza automatizzata dell’INPS»
B28: ISTITUTO NAZIONALE PREVIDENZA SOCIALE
B29: Direzione Centrale Risorse Strumentali
B30: CENTRALE UNICA ACQUISTI
C40: OFFERTA ECONOMICA
C41: ( Allegato 4A al Disciplinare di Gara )
C42: LOTTO 1 - Servizi di gestione integrata della Corrispondenza
C43: Procedura aperta di carattere comunitario, ai sensi dell’art. 55, comma 5, del D.Lgs. 163 del 12 aprile 2006, suddivisa in quattro lotti, volta all’affidamento dei “Servizi di gestione integrata e recapito della corrispondenza automatizzata dell'INPS”
C48: Via Ciro il Grande, 21 – 00144 Roma
C49: tel. +390659054322 - fax +390659054240
C50: C.F. 80078750587 - P.IVA 02121151001
B64: Dichiarazione dell'Offerta economica per il Lotto 1
B68: Il sottoscritto
B70: nato a | H70: il
B72: in qualità di rappresentante legale dell'operatore economico:
B75: (denominazione o ragione sociale)
B77: con sede in
B79: p. IVA | F79: C.F.
B83: presenta la seguente Offerta Economica ed accetta esplicitamente ed incondizionatamente tutte le
B84: obbligazioni e le condizioni contenute nel Bando di Gara, nel Disciplinare di Gara, nel Capitolato Tecnico,
B85: nello Schema di Contratto e negli altri allegati, dichiarando di essere disposto ad assumere l’affidamento
B86: dei: “Servizi di gestione integrata e recapito della corrispondenza automatizzata dell'INPS”
B87: per il LOTTO 1 - Servizi di gestione integrata della Corrispondenza
C90: OFFERTA ECONOMICA
B92: in cifre (IVA esclusa) | C92: =J156 -> 0
B94: in lettere (IVA esclusa) | C94: =valoreinlettere(C92) -> zero/00
C97: RIBASSO OFFERTO | F97: =J159 -> 1
B108: Scheda per il calcolo dell'Offerta economica - Lotto 1
B110: Istruzioni : | C110: inserire esclusivamente le tariffe offerte per ciascun servizio
B113: BASE D'ASTA LOTTO 1 | H113: OFFERTA ECONOMICA LOTTO 1
B114: tipo servizio | C114: Unità di misura | D114: tariffa (IVA esclusa) | E114: Quantità annuale | F114: Valore triennale | H114: Tariffa offerta (IVA esclusa) | I114: valore annuale | J114: valore triennale
B115: Corrispondenza in uscita
B116: Produzione di format, comp. grafica, personal. (pre-processing) | C116: Canone mese | D116: 35000 | E116: 12 | F116: =D116*E116*3 -> 1260000 | H116: 0 | I116: =E116*H116 -> 0 | J116: =I116*3 -> 0
B117: Foglio BN Fronte
B118: Foglio base | C118: Pezzo | D118: 0.2199 | E118: 1600000 | F118: =D118*E118*3 -> 1055520 | H118: 0 | I118: =E118*H118 -> 0 | J118: =I118*3 -> 0
B119: Foglio aggiuntivo | C119: Pezzo | D119: 0.0094 | E119: 2300000 | F119: =D119*E119*3 -> 64860 | H119: 0 | I119: =E119*H119 -> 0 | J119: =I119*3 -> 0
B120: Foglio BN Fronte/Retro
B121: Foglio base | C121: Pezzo | D121: 0.2276 | E121: 40000000 | F121: =D121*E121*3 -> 27312000 | H121: 0 | I121: =E121*H121 -> 0 | J121: =I121*3 -> 0
B122: Foglio aggiuntivo | C122: Pezzo | D122: 0.0188 | E122: 63000000 | F122: =D122*E122*3 -> 3553200 | H122: 0 | I122: =E122*H122 -> 0 | J122: =I122*3 -> 0
B123: Foglio HighLight Color Fronte
B124: Foglio base | C124: Pezzo | D124: 0.239 | E124: 10000 | F124: =D124*E124*3 -> 7170 | H124: 0 | I124: =E124*H124 -> 0 | J124: =I124*3 -> 0
B125: Foglio aggiuntivo | C125: Pezzo | D125: 0.022 | E125: 30000 | F125: =D125*E125*3 -> 1980 | H125: 0 | I125: =E125*H125 -> 0 | J125: =I125*3 -> 0
B126: Foglio Hight Light Color Fronte/Retro
B127: Foglio base | C127: Pezzo | D127: 0.239 | E127: 3000000 | F127: =D127*E127*3 -> 2151000 | H127: 0 | I127: =E127*H127 -> 0 | J127: =I127*3 -> 0
B128: Foglio aggiuntivo | C128: Pezzo | D128: 0.022 | E128: 6000000 | F128: =D128*E128*3 -> 396000 | H128: 0 | I128: =E128*H128 -> 0 | J128: =I128*3 -> 0
B129: Foglio quadricromia Fronte
B130: Foglio base | C130: Pezzo | D130: 0.2612 | E130: 5000 | F130: =D130*E130*3 -> 3918 | H130: 0 | I130: =E130*H130 -> 0 | J130: =I130*3 -> 0
B131: Foglio aggiuntivo | C131: Pezzo | D131: 0.04 | E131: 15000 | F131: =D131*E131*3 -> 1800 | H131: 0 | I131: =E131*H131 -> 0 | J131: =I131*3 -> 0
B132: Foglio quadricromia Fronte/Retro
B133: Foglio base | C133: Pezzo | D133: 0.2612 | E133: 5000 | F133: =D133*E133*3 -> 3918 | H133: 0 | I133: =E133*H133 -> 0 | J133: =I133*3 -> 0
B134: Foglio aggiuntivo | C134: Pezzo | D134: 0.04 | E134: 15000 | F134: =D134*E134*3 -> 1800 | H134: 0 | I134: =E134*H134 -> 0 | J134: =I134*3 -> 0
B135: Materiali
B136: Busta anonima | C136: Pezzo | D136: 0.03 | E136: 3015000 | F136: =D136*E136*3 -> 271350 | H136: 0 | I136: =E136*H136 -> 0 | J136: =I136*3 -> 0
B137: Busta con personalizzazione | C137: Pezzo | D137: 0.033 | E137: 41600000 | F137: =D137*E137*3 -> 4118400 | H137: 0 | I137: =E137*H137 -> 0 | J137: =I137*3 -> 0
B138: Cartolina | C138: Pezzo | D138: 0.0658 | E138: 24000000 | F138: =D138*E138*3 -> 4737600 | H138: 0 | I138: =E138*H138 -> 0 | J138: =I138*3 -> 0
B139: Digitalizzazione dei ritorni della corrispondenza in uscita
B140: Esiti negativi di recapito (acquisizione immagine + data-entry) | C140: Pezzo | D140: 0.1299 | E140: 4000000 | F140: =D140*E140*3 -> 1558800 | H140: 0 | I140: =E140*H140 -> 0 | J140: =I140*3 -> 0
B141: Avvisi di ricevimento (acquisizione immagine + data-entry) | C141: Pezzo | D141: 0.0819 | E141: 17000000 | F141: =D141*E141*3 -> 4176900 | H141: 0 | I141: =E141*H141 -> 0 | J141: =I141*3 -> 0
B142: Normalizzazione indirizzi Corrispondenza in uscita
B143: Normalizzazione | C143: Indirizzo | D143: 0.01 | E143: 10000000 | F143: =D143*E143*3 -> 300000 | H143: 0 | I143: =E143*H143 -> 0 | J143: =I143*3 -> 0
B144: Archiviazione ottica Corrispondenza in uscita
B145: Archiviazione ottica delle immagini | C145: pezzo anno | D145: 0.0081 | E145: 680000000 | F145: =D145*E145*3 -> 16524000 | H145: 0 | I145: =E145*H145 -> 0 | J145: =I145*3 -> 0
B146: Conservazione a norma delle ricevute di ritorno | C146: pezzo anno | D146: 0.01 | E146: 135000000 | F146: =D146*E146*3 -> 4050000 | H146: 0 | I146: =E146*H146 -> 0 | J146: =I146*3 -> 0
B147: Stoccaggio dei ritorni e relativa gestione
B148: Presa in carico del volume dei ritorni precedentemente stoccato | C148: Pezzo | D148: 0.0014 | E148: 200000000 | F148: =D148*E148*3 -> 840000 | H148: 0 | I148: =E148*H148 -> 0 | J148: =I148*3 -> 0
B149: Stoccaggio generato nel corso di vigenza contrattuale | C149: Pezzo anno | D149: 0.001 | E149: 24000000 | F149: =D149*E149*3 -> 72000 | H149: 0 | I149: =E149*H149 -> 0 | J149: =I149*3 -> 0
B150: Recupero on demand | C150: Pezzo spedito | D150: 5.6 | E150: 10000 | F150: =D150*E150*3 -> 168000 | H150: 0 | I150: =E150*H150 -> 0 | J150: =I150*3 -> 0
B151: Attività trasversali ai Servizi
B152: Supporto consulenziale, organizzativo e tecnologico ed informatico | C152: Canone mese | D152: 20000 | E152: 12 | F152: =D152*E152*3 -> 720000 | H152: 0 | I152: =E152*H152 -> 0 | J152: =I152*3 -> 0
B153: Digitalizzazione comunicazioni con informazioni base | C153: Documento | D153: =1.08 -> 1.08 | E153: 2000000 | F153: =D153*E153*3 -> 6480000 | H153: 0 | I153: =E153*H153 -> 0 | J153: =I153*3 -> 0
B154: Digitalizzazione comunicazioni con informazioni avanzate | C154: Documento | D154: =(1.08+0.38) -> 1.46 | E154: 1000000 | F154: =D154*E154*3 -> 4380000 | H154: 0 | I154: =E154*H154 -> 0 | J154: =I154*3 -> 0
B156: BASE D'ASTA LOTTO 1 | E156: =SUM(F116:F154) -> 84210216 | H156: OFFERTA ECONOMICA LOTTO 1 | J156: =SUM(J116:J154) -> 0
H159: Ribasso offerto | J159: =(E156-J156)/E156 -> 1
B164: COSTO DEL PERSONALE
B166: Valutato sulla base dei minimi salariali definiti dalla contrattazione collettiva nazionale di settore tra le organizzazioni sindacali dei lavoratori e le organizzazioni dei datori di lavoro comparativamente più rappresentative sul piano nazionale e delle voci retributive previste dalla contrattazione integrativa di secondo livello
B168: (in cifre)
B170: (in lettere)
C172: gli importi sono IVA esclusa
B176: Declaratoria obbligatoria dei CONTRATTI COLLETTIVI NAZIONALI, della CONTRATTAZIONE INTEGRATIVA DI SECONDO LIVELLO e degli ACCORDI COLLETTIVI applicati al personale preposto all'Appalto
B178: Tipologia, settore e denominazione della fonte di contrattazione collettiva e di contrattazione integrativa di secondo livello | D178: Data di stipula | F178: Rinnovo (eventuale) | I178: Data di efficacia finale
B187: Dichiara che beneficia di sgravi salariali applicati al personale preposto all’appalto in virtù dei seguenti riferimenti normativi e regolamentari:
B192: COSTI IN MATERIA DI SALUTE E SICUREZZA
B193: Costi per le misure di adempimento delle disposizioni in materia di salute e sicurezza nei luoghi di lavoro
B195: (in cifre)
B197: (in lettere)
C199: gli importi sono IVA esclusa
B206: DICHIARAZIONI
B208: Il sottoscritto dichiara inoltre che:
B210: la presente offerta è irrevocabile ed impegnativa sino al 180° (centottantesimo) giorno successivo alla data di scadenza del termine di presentazione;
B211: è consapevole che, in caso di indicazione di offerta recante un numero di cifre decimali dopo la virgola superiore a due, saranno considerate esclusivamente le prime due cifre decimali, senza procedere ad alcun arrotondamento;
B212: è consapevole che in caso di discordanza tra i prezzi unitari e il valore complessivamente offerto, i prezzi unitari prevarranno sul valore complessivo e, di conseguenza, si provvederà a rideterminare l’esatto valore complessivo, fermi restando i prezzi unitari offerti;
B213: è consapevole che i prezzi offerti sono omnicomprensivi di quanto previsto negli atti di gara e, comunque, i corrispettivi spettanti in caso di aggiudicazione rispettano le disposizioni vigenti in materia di costo del lavoro e di costi della sicurezza, secondo i valori sopra esposti;
B214: è consapevole che detta offerta non vincolerà in alcun modo l’Istituto;
B215: ha preso cognizione di tutte le circostanze generali e speciali che possono interessare l’esecuzione di tutte le prestazioni oggetto del contratto, e di tali circostanze ha tenuto conto nella determinazione del prezzo offerto, ritenuto remunerativo.
B219: luogo | F219: data
B223: operatore economico | F223: sottoscrizione
B227: ( in caso di RTI e consorzi costituendi, la presente Offerta Economica deve essere sottoscritta da tutti gli operatori raggruppati o consorziati )
B230: operatore economico | F230: sottoscrizione
B234: operatore economico | F234: sottoscrizione
B238: operatore economico | F238: sottoscrizione
B242: operatore economico | F242: sottoscrizione
